bitfinex-derivatives/quotes_BTCF0:USTF0_20250207
["timestamp","ask_amount","ask_price","bid_price","bid_amount"]
[1738942634498,0.009,98697.0,98695.0,0.2025534]
[1738942635093,0.00015188,98704.0,98696.0,0.3608]
[1738942635302,0.00015188,98704.0,98703.0,0.2025372]
[1738942635798,0.00015188,98704.0,98697.0,0.3143]
[1738942636187,0.00015188,98704.0,98700.0,0.2025415]
[1738942636692,0.00015188,98704.0,98695.0,0.00902452]
[1738942636693,0.2025475,98699.0,98695.0,0.00902452]
[1738942637000,0.009,98697.0,98696.0,0.2025516]
[1738942637189,0.17891604,98720.0,98695.0,0.001]
[1738942637190,0.35363896,98711.0,98695.0,0.001]
[1738942637395,0.00152047,98720.0,98718.0,0.2025064]
[1738942637595,0.001,98704.0,98702.0,0.2025393]
[1738942638300,0.00152047,98720.0,98679.0,0.2025865]
[1738942638301,0.7216,98703.0,98679.0,0.2025865]
[1738942638500,0.17739557,98690.0,98669.0,0.3608]
[1738942638706,0.2025792,98683.0,98681.0,0.00015202]
[1738942638890,0.5633792,98683.0,98681.0,0.00015202]
[1738942639890,0.2025792,98683.0,98681.0,0.00015202]
[1738942640097,0.2416,98702.0,98688.0,0.2025667]
[1738942640296,0.2416,98702.0,98681.0,0.00015202]
[1738942640297,0.3608,98691.0,98681.0,0.20273332]
[1738942640592,0.3608,98691.0,98681.0,0.00015202]
[1738942640799,0.2025524,98696.0,98683.0,0.3608]
[1738942640996,0.2416,98702.0,98683.0,0.3608]
[1738942641201,0.14593467,98699.0,98692.0,0.3608]
[1738942641402,0.14593467,98699.0,98698.0,0.2025474]
[1738942641705,0.14593467,98699.0,98692.0,0.3608]
[1738942641905,0.2025519,98696.0,98693.0,0.2025564]
[1738942642104,0.14593467,98699.0,98697.0,0.2025488]
[1738942642302,0.14593467,98699.0,98681.0,0.00515202]
[1738942642507,0.2025781,98683.0,98681.0,2e-08]
[1738942642906,0.0506459,98681.0,98643.0,0.8725]
[1738942643099,0.2026199,98663.0,98656.0,0.2026328]
[1738942643398,0.17739557,98680.0,98643.0,0.88148626]
[1738942643399,0.2026568,98645.0,98644.0,0.2026579]
[1738942643603,0.2026568,98645.0,98643.0,0.88204626]
[1738942643604,0.17739557,98660.0,98648.0,0.2026494]
[1738942643800,0.2026449,98651.0,98648.0,0.2026494]
[1738942644200,0.2026449,98651.0,98643.0,0.88248626]
[1738942644393,0.00015202,98654.0,98650.0,0.3608]
[1738942644598,0.2025919,98677.0,98663.0,0.2026185]
[1738942644797,0.001,98660.0,98651.0,0.3608]
[1738942645000,0.2026566,98645.0,98643.0,0.31948626]
[1738942645507,0.3608,98656.0,98647.0,0.2026505]
[1738942645700,0.202643,98652.0,98649.0,0.2026471]
[1738942645903,0.2026435,98652.0,98649.0,0.2026471]
[1738942646097,0.001,98660.0,98643.0,0.31948626]
[1738942646098,0.27474993,98660.0,98643.0,0.31948626]
[1738942646300,0.3608,98653.0,98643.0,0.31948626]
[1738942646510,0.001,98654.0,98652.0,0.2026418]
[1738942647202,0.001,98656.0,98655.0,0.2026356]
[1738942648309,0.2026297,98658.0,98655.0,0.2026356]
[1738942648510,0.2026297,98658.0,98656.0,0.2026331]
[1738942648697,0.3608,98674.0,98652.0,0.001]
[1738942649005,0.5633966,98674.0,98673.0,0.2025987]
[1738942649206,0.5633966,98674.0,98659.0,0.3608]
[1738942649403,0.2026053,98670.0,98659.0,0.3608]
[1738942649600,0.3608,98674.0,98673.0,0.2025987]
[1738942650001,0.00056001,98681.0,98680.0,0.2025843]
[1738942650307,0.3608,98703.0,98673.0,0.3608]
[1738942650308,0.16708217,98691.0,98690.0,0.2025638]
[1738942651007,0.16708217,98691.0,98690.0,0.5633638]
[1738942652112,0.73044387,98691.0,98681.0,0.20273412]
[1738942652408,0.3608,98682.0,98681.0,0.00015202]
[1738942653007,0.6997,98682.0,98681.0,0.00015202]
[1738942653203,0.9608,98682.0,98681.0,0.00015202]
[1738942653913,0.9648,98682.0,98681.0,0.00015202]
[1738942654213,0.9648,98682.0,98637.0,0.2607]
[1738942654405,0.27374993,98660.0,98643.0,0.202659]
[1738942654606,0.5634593,98644.0,98636.0,0.0008]
[1738942654905,0.5634593,98644.0,98629.0,0.23984236]
[1738942654906,0.2026593,98644.0,98629.0,0.23984236]
[1738942655308,0.2026593,98644.0,98633.0,0.2026794]
[1738942655514,0.202642,98652.0,98644.0,0.2026573]
[1738942655704,0.202642,98652.0,98647.0,0.2026507]
[1738942655905,0.2026475,98650.0,98639.0,0.2026675]
[1738942656302,0.012,98644.0,98642.0,0.00252049]
[1738942656608,0.012,98644.0,98642.0,0.20518149]
[1738942656806,0.007,98644.0,98642.0,0.20518149]
[1738942657010,0.007,98644.0,98642.0,0.21416622]
[1738942657211,0.00015202,98653.0,98646.0,0.2026536]
[1738942657514,0.00015202,98653.0,98642.0,0.01450522]
[1738942657515,0.2026562,98645.0,98642.0,0.01450522]
[1738942657715,0.2026504,98648.0,98642.0,0.21716692]
[1738942657915,0.2026552,98646.0,98642.0,0.21316692]
[1738942658129,0.006,98644.0,98642.0,0.21416692]
[1738942658515,0.011,98644.0,98642.0,0.21416692]
[1738942658815,0.2026602,98643.0,98642.0,0.21416692]
[1738942659016,0.006,98644.0,98642.0,0.21416692]
[1738942659415,0.3608,98643.0,98642.0,0.01150522]
[1738942660019,0.2076599,98644.0,98642.0,0.01150522]
[1738942660615,0.3608,98643.0,98642.0,0.01150522]
[1738942660915,0.3608,98643.0,98642.0,0.01050522]
[1738942661120,0.3678,98643.0,98642.0,0.00252049]
[1738942661320,0.2026787,98634.0,98633.0,0.00015202]
[1738942661516,0.2026787,98634.0,98605.0,0.3608]
[1738942661517,0.2026959,98626.0,98605.0,0.3608]
[1738942661713,0.2027041,98622.0,98617.0,0.2027134]
[1738942661911,0.2027206,98614.0,98611.0,0.2027258]
[1738942662110,0.3608,98626.0,98605.0,0.36960751]
[1738942662415,0.2027362,98607.0,98605.0,0.21154391]
[1738942662726,0.2027362,98607.0,98606.0,0.0001521]
[1738942663318,0.2027187,98615.0,98611.0,0.2027247]
[1738942663512,0.3608,98617.0,98606.0,0.0001521]
[1738942663713,0.001,98607.0,98606.0,0.2028884]
[1738942664309,0.3609521,98625.0,98606.0,0.0001521]
[1738942664511,0.2027342,98607.0,98606.0,0.0001521]
[1738942664923,0.004,98615.0,98606.0,0.0001521]
[1738942665122,0.2027212,98614.0,98612.0,0.2027236]
[1738942665828,0.004,98615.0,98606.0,0.2028884]
[1738942666023,0.001,98607.0,98606.0,0.0001521]
[1738942666326,0.001,98607.0,98606.0,0.0011521]
[1738942666727,0.2027334,98608.0,98606.0,0.0001521]
[1738942667418,0.006,98614.0,98612.0,0.2027225]
[1738942667623,0.002,98614.0,98612.0,0.2027225]
[1738942668229,0.2027342,98608.0,98607.0,0.2027334]
[1738942668421,0.2027342,98608.0,98606.0,0.0001521]
[1738942668621,0.5635342,98608.0,98606.0,0.0001521]
[1738942669229,0.5645342,98608.0,98606.0,0.0001521]
[1738942669618,0.5645342,98608.0,98606.0,0.0011521]
[1738942670234,0.3608,98626.0,98606.0,0.0011521]
[1738942670423,0.2027003,98624.0,98606.0,0.0011521]
[1738942670623,0.3608,98626.0,98606.0,0.0011521]
[1738942670819,0.2028493,98625.0,98607.0,0.0506833]
[1738942671035,0.2028493,98625.0,98623.0,0.2027004]
[1738942671036,0.0001521,98625.0,98623.0,0.2027004]
[1738942671725,0.0001521,98625.0,98617.0,0.5962]
[1738942671726,0.3608,98649.0,98647.0,0.2026504]
[1738942672132,0.0015212,98653.0,98633.0,0.3608]
[1738942672332,0.2026589,98644.0,98633.0,0.3608]
[1738942672538,0.2026589,98644.0,98639.0,0.202668]
[1738942672929,0.2026651,98641.0,98632.0,0.2026825]
[1738942673145,0.2026676,98640.0,98632.0,0.2026825]
[1738942673436,0.2026869,98630.0,98629.0,0.0001521]
[1738942673637,0.2026869,98630.0,98629.0,0.00923556]
[1738942673835,0.5634869,98630.0,98629.0,0.0001521]
[1738942675232,0.5644869,98630.0,98629.0,0.0091521]
[1738942675930,0.5654869,98630.0,98629.0,0.0111521]
[1738942676843,0.5654869,98630.0,98602.0,0.3242]
[1738942676844,0.2027349,98607.0,98602.0,0.3242]
[1738942677031,0.3608,98615.0,98602.0,0.00895502]
[1738942677334,0.3608,98615.0,98614.0,0.2027198]
[1738942677539,0.3608,98628.0,98600.0,0.10886172]
[1738942677739,0.3608,98628.0,98609.0,0.2027292]
[1738942678037,0.202725,98612.0,98609.0,0.2028813]
[1738942679033,0.3608,98617.0,98609.0,0.0081521]
[1738942679329,0.202728,98610.0,98609.0,0.0081521]
[1738942679530,0.202728,98610.0,98609.0,0.0001521]
[1738942680332,0.003,98612.0,98610.0,0.2027272]
[1738942681041,0.202728,98610.0,98609.0,0.0001521]
[1738942681237,0.002,98612.0,98609.0,0.0001521]
[1738942681436,0.002,98612.0,98611.0,0.202726]
[1738942681738,0.72512001,98617.0,98609.0,0.0001521]
[1738942681739,0.00552001,98617.0,98615.0,0.2027178]
[1738942682036,0.2027274,98611.0,98609.0,0.0001521]
[1738942682334,0.3608,98610.0,98609.0,0.00885479]
[1738942682537,0.3608,98610.0,98609.0,0.0001521]
[1738942682740,0.6608,98610.0,98600.0,0.1]
[1738942682943,0.6608,98610.0,98560.0,0.78483416]
[1738942682944,0.2027626,98594.0,98590.0,0.2027685]
[1738942683242,0.2027529,98598.0,98596.0,0.2027566]
[1738942684146,0.2027674,98591.0,98590.0,0.2027687]
[1738942684342,0.2027733,98588.0,98587.0,0.0001521]
[1738942684541,0.2027733,98588.0,98587.0,0.00905475]
[1738942684839,0.2027733,98588.0,98560.0,0.60704]
[1738942684840,0.2028389,98558.0,98557.0,0.2028369]
[1738942685335,0.17779416,98570.0,98554.0,0.2028426]
[1738942685336,0.2028142,98569.0,98554.0,0.2028426]
[1738942685536,0.17779416,98570.0,98550.0,0.60064236]
[1738942685737,0.17779416,98560.0,98550.0,0.60959743]
[1738942685941,0.2028491,98552.0,98550.0,0.24894961]
[1738942686127,0.3608,98555.0,98550.0,0.24894961]
[1738942686331,0.2028372,98557.0,98552.0,0.2028464]
[1738942686533,0.001,98558.0,98557.0,0.2028371]
[1738942686736,0.2028238,98564.0,98557.0,0.2028371]
[1738942686934,0.2028238,98564.0,98558.0,0.2028338]
[1738942687228,0.2028494,98551.0,98550.0,0.25394961]
[1738942687434,0.5636494,98551.0,98550.0,0.25394961]
[1738942687832,0.2028679,98542.0,98541.0,0.30022735]
[1738942688033,0.2028844,98534.0,98517.0,0.42219999]
[1738942688237,0.5636844,98534.0,98520.0,0.2029131]
[1738942688437,0.5636844,98534.0,98517.0,0.42219999]
[1738942688637,0.3608,98534.0,98528.0,0.00886533]
[1738942688840,0.3608,98534.0,98531.0,0.2028903]
[1738942689041,0.3608,98534.0,98528.0,0.00886533]
[1738942689238,0.7216,98534.0,98533.0,0.00152184]
[1738942689435,0.2029028,98525.0,98524.0,0.00015218]
[1738942689639,0.5637028,98525.0,98524.0,0.00015218]
[1738942690148,0.3608,98525.0,98506.0,0.2029407]
[1738942690444,0.2029399,98507.0,98504.0,0.24211408]
[1738942690852,0.3608,98514.0,98504.0,0.2511986]
[1738942691145,0.2029345,98510.0,98504.0,0.2511986]
[1738942691646,0.5637432,98506.0,98504.0,0.2511986]
[1738942691844,0.5637432,98506.0,98504.0,0.2531986]
[1738942692051,0.001,98507.0,98504.0,0.2531986]
[1738942692252,0.001,98507.0,98506.0,0.2029421]
[1738942692544,0.00015226,98519.0,98518.0,0.2029173]
[1738942692744,0.00907985,98540.0,98518.0,0.43]
[1738942692951,0.2028128,98569.0,98561.0,0.2028268]
[1738942693134,0.2028128,98569.0,98547.0,0.3608]
[1738942693338,0.3608,98575.0,98556.0,0.3608]
[1738942693541,0.2028199,98566.0,98556.0,0.3608]
[1738942693741,0.2028199,98566.0,98550.0,0.0692]
[1738942693742,0.17585423,98559.0,98553.0,0.2028442]
[1738942694043,0.17585423,98559.0,98557.0,0.2028353]
[1738942694652,0.17585423,98559.0,98558.0,0.3608]
[1738942694951,0.007,98569.0,98568.0,0.2028143]
[1738942696244,0.00015218,98571.0,98568.0,0.3608]
[1738942696450,0.00015218,98571.0,98570.0,0.2028103]
[1738942696946,0.2028123,98569.0,98561.0,0.202827]
[1738942697150,0.00015218,98571.0,98561.0,0.202827]
[1738942697453,0.2028123,98569.0,98568.0,0.002]
[1738942697842,0.2028123,98569.0,98568.0,0.006]
[1738942698046,0.2028123,98569.0,98568.0,0.004]
[1738942698246,0.2038123,98569.0,98568.0,0.004]
[1738942698841,0.2038123,98569.0,98561.0,0.002]
[1738942699044,0.2028155,98568.0,98561.0,0.002]
[1738942699249,0.001,98569.0,98561.0,0.002]
[1738942699650,0.001,98569.0,98568.0,0.2028144]
[1738942699845,0.00015218,98571.0,98570.0,0.2028102]
[1738942700645,0.3608,98593.0,98592.0,0.2027652]
[1738942700847,0.2027679,98591.0,98577.0,0.3608]
[1738942701046,0.2027679,98591.0,98586.0,0.2027773]
[1738942701350,0.3608,98593.0,98591.0,0.2027666]
[1738942702756,0.005,98593.0,98591.0,0.2027666]
[1738942703348,0.005,98593.0,98591.0,0.21173848]
[1738942703552,0.005,98593.0,98592.0,0.3608]
[1738942703758,0.003,98593.0,98592.0,0.5635652]
[1738942704251,0.0015223,98601.0,98592.0,0.5635652]
[1738942704252,0.0015223,98601.0,98600.0,0.2027487]
[1738942704459,0.3608,98621.0,98600.0,0.2027487]
[1738942704460,0.3608,98621.0,98616.0,0.2027146]
[1738942705148,0.3608,98621.0,98619.0,0.2027094]
[1738942705556,0.3608,98621.0,98609.0,0.3608]
[1738942705757,0.2027262,98611.0,98610.0,0.0001521]
[1738942707151,0.5635262,98611.0,98610.0,0.0001521]
[1738942707356,0.5635262,98611.0,98610.0,0.0031521]
[1738942707557,0.6608,98611.0,98576.0,0.3608]
[1738942707748,0.3608,98586.0,98576.0,0.00911664]
[1738942707950,0.3608,98586.0,98568.0,0.2028134]
[1738942708250,0.2028057,98573.0,98569.0,0.2028118]
[1738942708553,0.2028095,98571.0,98569.0,0.2028118]
[1738942708760,0.3608,98578.0,98565.0,0.2028207]
[1738942708960,0.3608,98578.0,98564.0,0.01045388]
[1738942708961,0.202816,98568.0,98564.0,0.01045388]
[1738942709154,0.3608,98578.0,98564.0,0.01045388]
[1738942709356,0.2028126,98569.0,98568.0,0.001]
[1738942709957,0.2028208,98565.0,98564.0,0.00152184]
[1738942710158,0.2028208,98565.0,98561.0,0.0001521]
[1738942710159,0.3608,98570.0,98561.0,0.0001521]
[1738942710359,0.3608,98562.0,98561.0,0.00939211]
[1738942710559,0.3608,98562.0,98561.0,0.0001521]
[1738942711058,0.001,98569.0,98561.0,0.0001521]
[1738942711260,0.3658,98570.0,98568.0,0.2028146]
[1738942711649,0.005,98570.0,98568.0,0.2028146]
[1738942712759,0.2027949,98578.0,98571.0,0.202807]
[1738942712958,0.3609521,98581.0,98563.0,0.2028248]
[1738942713362,0.2028111,98570.0,98564.0,0.2028222]
[1738942713558,0.3609521,98581.0,98564.0,0.2028222]
[1738942713754,0.2028131,98569.0,98568.0,0.001]
[1738942714463,0.3608,98571.0,98569.0,0.2028108]
[1738942714664,0.2027901,98580.0,98576.0,0.202798]
[1738942714852,0.0001521,98581.0,98564.0,0.003]
[1738942715058,0.2028154,98568.0,98567.0,0.2028147]
[1738942716158,0.001,98569.0,98562.0,0.2964612]
[1738942716461,0.2028249,98563.0,98562.0,5.073e-05]
[1738942716660,0.0507071,98562.0,98530.0,0.3608]
[1738942716866,0.2028512,98551.0,98547.0,0.2028574]
[1738942717167,0.0507071,98562.0,98530.0,0.5388103]
[1738942717370,0.3608,98558.0,98547.0,0.202856]
[1738942717664,0.3608,98558.0,98530.0,0.36993403]
[1738942718072,0.2028654,98544.0,98540.0,0.2028711]
[1738942718262,0.2028673,98543.0,98540.0,0.2028711]
[1738942718458,0.2028478,98552.0,98534.0,0.00015218]
[1738942718663,0.3608,98558.0,98557.0,0.2028372]
[1738942718863,0.3608,98558.0,98542.0,0.2028667]
[1738942719065,0.3608,98558.0,98556.0,0.2028376]
[1738942719463,0.3618,98558.0,98556.0,0.2028376]
[1738942719766,0.001,98558.0,98556.0,0.2028376]
[1738942720174,0.00015218,98562.0,98561.0,0.202829]
[1738942720380,0.3608,98588.0,98561.0,0.3608]
[1738942720669,0.2027821,98584.0,98581.0,0.2027868]
[1738942720873,0.3608,98588.0,98567.0,0.2028155]
[1738942720874,0.202816,98568.0,98567.0,0.2028155]
[1738942721256,0.3608,98568.0,98556.0,0.0159329]
[1738942721470,0.2028266,98563.0,98558.0,0.00015218]
[1738942721766,0.2028331,98559.0,98558.0,0.00015218]
[1738942722361,0.2028331,98559.0,98541.0,0.2028693]
[1738942722362,0.2028638,98545.0,98541.0,0.2028693]
[1738942722563,0.2028387,98557.0,98540.0,0.2028712]
[1738942722765,0.3608,98559.0,98532.0,0.96104]
[1738942722965,0.2028688,98542.0,98533.0,0.2028856]
[1738942723160,0.2028688,98542.0,98540.0,0.202871]
[1738942723458,0.3608,98559.0,98549.0,0.2028526]
[1738942723459,0.2028513,98551.0,98549.0,0.2028526]
[1738942723768,0.20300348,98551.0,98549.0,0.2028526]
[1738942724069,0.00015218,98551.0,98549.0,0.2028526]
[1738942724860,0.00015218,98551.0,98549.0,0.2098526]
[1738942725168,0.00115218,98551.0,98549.0,0.2098526]
[1738942725561,0.20400228,98551.0,98549.0,0.014]
[1738942725764,0.20500228,98551.0,98549.0,0.014]
[1738942726070,0.00215218,98551.0,98549.0,0.2168533]
[1738942726371,0.00115218,98551.0,98549.0,0.2098533]
[1738942726571,0.00615218,98551.0,98549.0,0.2108533]
[1738942727071,0.00615218,98551.0,98549.0,0.22018436]
[1738942727374,0.00215218,98551.0,98549.0,0.22718436]
[1738942727875,0.00215218,98551.0,98549.0,0.22518436]
[1738942728472,0.00115218,98551.0,98549.0,0.21918436]
[1738942728771,0.00215218,98551.0,98549.0,0.21918436]
[1738942728970,0.2028016,98575.0,98573.0,0.2028029]
[1738942729169,0.3608,98576.0,98562.0,0.2028256]
[1738942729369,0.2028255,98563.0,98562.0,0.2028256]
[1738942729564,0.3608,98576.0,98562.0,0.2028257]
[1738942729763,0.2028254,98563.0,98561.0,0.2028281]
[1738942730165,0.2028333,98559.0,98556.0,0.2028377]
[1738942730372,0.2028421,98558.0,98557.0,0.2028368]
[1738942730571,0.2028253,98563.0,98562.0,0.2028207]
[1738942730770,0.3608,98567.0,98566.0,0.2028187]
[1738942731273,0.2028151,98568.0,98566.0,0.2028187]
[1738942732679,0.2028167,98567.0,98566.0,0.2028187]
[1738942733485,0.002,98568.0,98557.0,0.3608]
[1738942733669,0.001,98563.0,98562.0,0.209827]
[1738942734380,0.2048146,98568.0,98567.0,0.2028167]
[1738942734774,0.006,98563.0,98562.0,0.001]
[1738942734971,0.2088249,98563.0,98562.0,0.001]
[1738942736574,0.2088249,98563.0,98562.0,0.203827]
[1738942736771,0.2108249,98563.0,98562.0,0.001]
[1738942736977,0.002,98563.0,98552.0,0.00015218]
[1738942737179,0.2028455,98553.0,98552.0,0.20299918]
[1738942737375,0.2028455,98553.0,98552.0,0.20299968]
[1738942739277,0.3608,98559.0,98552.0,0.00015218]
[1738942739475,0.3608,98559.0,98558.0,0.2028352]
[1738942739670,0.3608,98559.0,98552.0,0.00015218]
[1738942739878,0.2068455,98553.0,98552.0,0.20299718]
[1738942740083,0.2138455,98553.0,98552.0,0.20399718]
[1738942740281,0.011,98553.0,98552.0,0.20399718]
[1738942740587,0.011,98553.0,98552.0,0.56679718]
[1738942740588,0.007,98553.0,98552.0,0.56679718]
[1738942741089,0.009,98553.0,98552.0,0.56479718]
[1738942741679,0.014,98553.0,98552.0,0.56579718]
[1738942741884,0.007,98553.0,98552.0,0.57179718]
[1738942742084,0.2098455,98553.0,98552.0,0.00815218]
[1738942742585,0.2098455,98553.0,98552.0,0.21099968]
[1738942742782,0.2108455,98553.0,98552.0,0.00115218]
[1738942742981,0.6688,98553.0,98525.0,0.18170727]
[1738942743172,0.2029011,98526.0,98525.0,0.18170727]
[1738942743691,0.2029288,98513.0,98511.0,0.30182118]
[1738942743984,0.3608,98521.0,98511.0,0.30182118]
[1738942744189,0.3608,98521.0,98520.0,0.2029134]
[1738942744376,0.00015227,98522.0,98520.0,0.2029134]
[1738942745878,0.2029161,98519.0,98511.0,0.31095525]
[1738942746078,0.2029161,98519.0,98516.0,0.2029206]
[1738942746479,0.00415227,98522.0,98511.0,0.31095525]
[1738942746683,0.2039114,98521.0,98512.0,0.2029282]
[1738942747096,0.2029197,98517.0,98512.0,0.2029282]
[1738942747388,0.003,98519.0,98515.0,0.2029222]
[1738942747685,0.18216257,98522.0,98515.0,0.2029222]
[1738942747881,0.00415227,98522.0,98521.0,0.2029114]
[1738942748986,0.00015227,98522.0,98521.0,0.2029114]
[1738942749686,0.00415227,98522.0,98521.0,0.2029114]
[1738942750073,0.00815227,98522.0,98521.0,0.2029114]
[1738942750479,7e-08,98522.0,98521.0,0.5637114]
[1738942750689,0.07262741,98538.0,98537.0,0.2028784]
[1738942750890,0.07262741,98538.0,98537.0,0.5636784]
[1738942752480,0.03657158,98538.0,98537.0,0.5636784]
[1738942752986,0.03657158,98538.0,98537.0,0.5646784]
[1738942753189,0.03657158,98538.0,98537.0,0.57184122]
[1738942753388,0.2023114,98549.0,98537.0,0.73076282]
[1738942753583,0.20432823,98573.0,98548.0,0.3608]
[1738942753774,0.00152253,98573.0,98557.0,0.3608]
[1738942753976,0.1780103,98570.0,98557.0,0.3608]
[1738942754182,0.00152253,98573.0,98569.0,0.3608]
[1738942754382,0.6024,98595.0,98588.0,0.2027735]
[1738942754581,0.24212001,98595.0,98588.0,0.2027735]
[1738942754889,0.2416,98595.0,98588.0,0.2027735]
[1738942755388,0.2027641,98593.0,98588.0,0.2027735]
[1738942755593,0.2416,98595.0,98578.0,0.3608]
[1738942755594,0.2027783,98586.0,98578.0,0.3608]
[1738942755793,0.18729042,98589.0,98578.0,0.3608]
[1738942755991,0.18673041,98589.0,98578.0,0.3608]
[1738942756188,0.19073041,98589.0,98587.0,0.2027739]
[1738942756492,0.19073041,98589.0,98578.0,0.36807897]
[1738942756687,0.19073041,98589.0,98587.0,0.5635739]
[1738942757082,0.2027836,98584.0,98578.0,0.36807897]
[1738942757289,0.19473041,98589.0,98578.0,0.36807897]
[1738942757491,0.19473041,98589.0,98578.0,0.00727897]
[1738942757696,0.19473041,98589.0,98563.0,0.3608]
[1738942757994,0.19473041,98589.0,98564.0,0.06868]
[1738942757995,0.2028108,98570.0,98564.0,0.06868]
[1738942758195,0.2027989,98576.0,98564.0,0.06868]
[1738942758386,0.00015219,98577.0,98574.0,0.3608]
[1738942758785,0.2028,98576.0,98574.0,0.3608]
[1738942759192,0.00015219,98577.0,98563.0,0.3608]
[1738942759387,0.2028216,98565.0,98564.0,0.06864]
[1738942759686,0.2028216,98565.0,98563.0,0.43677383]
[1738942760386,0.2028216,98565.0,98563.0,0.36813383]
[1738942760993,0.2028216,98565.0,98563.0,0.37213383]
[1738942761400,0.2028064,98572.0,98566.0,0.202817]
[1738942761690,0.202817,98567.0,98563.0,0.37213383]
[1738942761892,0.001,98565.0,98563.0,0.37813383]
[1738942762394,0.2038228,98565.0,98563.0,0.37413383]
[1738942762692,0.2038228,98565.0,98563.0,0.37113383]
[1738942762693,0.2028228,98565.0,98563.0,0.37113383]
[1738942762997,0.2028228,98565.0,98563.0,0.36813383]
[1738942763293,0.2028228,98565.0,98563.0,0.37213383]
[1738942763495,0.2028228,98565.0,98563.0,0.37613383]
[1738942763693,0.3608,98564.0,98563.0,0.01533383]
[1738942763897,0.2028599,98546.0,98535.0,0.3608]
[1738942764585,0.5636599,98546.0,98523.0,0.3608]
[1738942764785,0.2029175,98518.0,98513.0,0.3608]
[1738942764991,0.3608,98518.0,98517.0,0.00723692]
[1738942765195,0.202932,98511.0,98510.0,0.3608]
[1738942765395,0.2029212,98517.0,98508.0,0.28985219]
[1738942765700,0.53941031,98540.0,98508.0,0.28985219]
[1738942765701,0.00015227,98519.0,98515.0,0.3608]
[1738942765894,0.2029212,98517.0,98515.0,0.3608]
[1738942766093,0.2029338,98510.0,98509.0,0.1780103]
[1738942766291,0.2029338,98510.0,98508.0,0.00762908]
[1738942768103,0.2029338,98510.0,98509.0,0.001]
[1738942768996,0.2029338,98510.0,98508.0,0.00862908]
[1738942769200,0.2039338,98510.0,98508.0,0.00862908]
[1738942769390,0.3608,98509.0,98508.0,0.00862908]
[1738942769594,0.3608,98509.0,98500.0,0.1]
[1738942769789,0.3608,98509.0,98484.0,0.43298163]
[1738942769790,0.3608,98501.0,98498.0,0.00745494]
[1738942769986,0.2029587,98498.0,98482.0,0.06856]
[1738942770187,0.3608,98501.0,98471.0,0.2892]
[1738942770188,0.247,98500.0,98471.0,0.2892]
[1738942770401,0.3608,98487.0,98471.0,0.2892]
[1738942770792,0.2030123,98472.0,98471.0,0.2892]
[1738942770993,0.2030123,98472.0,98471.0,0.29650455]
[1738942771197,0.2030123,98472.0,98471.0,0.00730455]
[1738942771406,0.2030165,98470.0,98469.0,0.00015227]
[1738942771593,0.5638165,98470.0,98469.0,0.00015227]
[1738942771791,0.5638165,98470.0,98451.0,0.3608]
[1738942771792,0.2030515,98453.0,98451.0,0.3608]
[1738942772407,0.2030515,98453.0,98452.0,0.24969744]
[1738942772703,0.2030618,98448.0,98447.0,8e-08]
[1738942773903,0.2030742,98442.0,98441.0,0.36117177]
[1738942774113,0.2031109,98425.0,98421.0,0.00152326]
[1738942774408,0.2031134,98423.0,98421.0,0.00152326]
[1738942774910,0.2031134,98423.0,98421.0,0.00878534]
[1738942775103,0.3608,98429.0,98421.0,0.00152326]
[1738942775504,0.2031331,98414.0,98400.0,0.1]
[1738942775809,0.3608,98407.0,98400.0,0.3031603]
[1738942776000,0.1780103,98410.0,98400.0,0.31046045]
[1738942776412,0.2031423,98409.0,98400.0,0.10730015]
[1738942776607,0.1780103,98410.0,98400.0,0.10730015]
[1738942776807,0.3608,98414.0,98409.0,0.2031419]
[1738942778011,0.001,98410.0,98409.0,0.2031419]
[1738942778605,0.001,98410.0,98409.0,0.2041419]
[1738942778800,0.3608,98414.0,98409.0,0.2061419]
[1738942779003,0.3608,98414.0,98409.0,0.003]
[1738942779314,0.3608,98414.0,98413.0,0.203134]
[1738942779813,0.2031402,98410.0,98409.0,0.003]
[1738942780109,0.3608,98414.0,98375.0,0.3608]
[1738942780309,0.2031766,98393.0,98378.0,0.0087155]
[1738942780607,0.3608,98399.0,98378.0,0.00152463]
[1738942780913,0.1780103,98390.0,98383.0,0.203194]
[1738942781306,0.00015244,98395.0,98388.0,0.3608]
[1738942781503,0.00015244,98395.0,98393.0,0.2031739]
[1738942781817,4e-08,98395.0,98393.0,0.2031739]
[1738942782003,0.247,98430.0,98429.0,0.203101]
[1738942782310,0.2828,98439.0,98434.0,0.2030907]
[1738942782610,0.2828,98439.0,98414.0,0.2031314]
[1738942782804,0.2828,98439.0,98432.0,0.2030931]
[1738942783009,0.2828,98439.0,98433.0,0.2030919]
[1738942783210,0.007,98430.0,98424.0,0.00015244]
[1738942783410,0.007,98430.0,98429.0,0.203101]
[1738942783807,0.007,98430.0,98424.0,0.00015244]
[1738942783808,0.3608,98434.0,98433.0,0.2030928]
[1738942784314,0.3608,98434.0,98424.0,0.00015244]
[1738942784513,0.3608,98426.0,98424.0,0.00015244]
[1738942785305,0.3608,98426.0,98424.0,0.20326234]
[1738942785702,0.3618,98434.0,98433.0,0.2030928]
[1738942786118,0.3608,98434.0,98433.0,0.2030928]
[1738942786715,0.00015244,98443.0,98425.0,0.3608]
[1738942786914,0.1780103,98440.0,98425.0,0.3608]
[1738942787117,0.1780103,98440.0,98436.0,0.2030854]
[1738942787413,0.00015244,98443.0,98442.0,0.2030742]
[1738942787718,0.00015244,98443.0,98442.0,0.04382011]
[1738942787913,0.00015244,98443.0,98436.0,0.3608]
[1738942788407,0.00015244,98443.0,98442.0,0.2030742]
[1738942788921,0.00115244,98443.0,98442.0,0.2050742]
[1738942789616,0.00115244,98443.0,98442.0,0.002]
[1738942789815,0.00115244,98443.0,98442.0,0.005]
[1738942790017,0.00115244,98443.0,98442.0,0.0122099]
[1738942790212,0.00115244,98443.0,98442.0,0.2080742]
[1738942790608,0.00152426,98460.0,98459.0,0.203039]
[1738942791113,0.3608,98485.0,98458.0,0.3608]
[1738942791310,0.3608,98485.0,98476.0,0.2030031]
[1738942791511,0.3608,98485.0,98463.0,0.06844]
[1738942791711,0.3608,98485.0,98484.0,0.2029874]
[1738942792714,0.3608,98485.0,98484.0,0.21034609]
[1738942793020,0.3608,98485.0,98484.0,0.00735869]
[1738942793320,0.3608,98485.0,98484.0,0.003]
[1738942793522,0.3608,98485.0,98484.0,0.2059874]
[1738942793725,0.00015236,98490.0,98484.0,0.2059874]
[1738942793726,0.00015236,98490.0,98489.0,0.2029771]
[1738942794021,0.00015236,98490.0,98484.0,0.003]